Cogmind - Beta 16 @@@ ROGUE MODE // 2025.11.27 @ 19:32:09 Player: Asimov Result: Destroyed by H-55 Commando with Gauss Rifle Performance ------------- Evolutions (2) 1000 Regions Visited (3) 600 Robots Destroyed (17) 85 Value Destroyed (517) 517 Prototype IDs (0) 0 Alien Tech Used (0) 0 Bonus (0) 0 TOTAL SCORE: 2202 Bonus ------- None Cogmind --------- Core Integrity 0/550 Matter 280/300 Energy 14/100 System Corruption 3% Temperature Cool (0) Movement Treading (160) Location -8/Materials Parts ------- > --- POWER (2) -------- (None) > --- PROPULSION (3) --- Light Treads > --- UTILITY (3) ------ Medium Storage Unit > --- WEAPON (3) ------- Datajack > --- INVENTORY (10) --- Light Nuclear Core Light Treads Improved Heat Sink Terrain Scan Processor Peak State ------------ > --- POWER ------------ Ion Engine Light Nuclear Core > --- PROPULSION ------- Aluminum Leg Improved Aluminum Leg > --- UTILITY ---------- Improved Heat Sink Small Storage Unit ECM Suite > --- WEAPON ----------- Medium Laser Light EM Pulse Cannon Light Assault Rifle > --- INVENTORY -------- Ion Engine Light Treads Light Treads Datajack Mining Laser Mining Claw [Rating: 16] Favorites ----------- Power Ion Engine Engine Ion Engine Power Core Light Nuclear Core Propulsion Aluminum Leg Treads Light Treads Leg Aluminum Leg Wheel Wheel Utility Small Storage Unit Device Improved Heat Sink Storage Small Storage Unit Weapon Light Assault Rifle Energy Gun Medium Laser Energy Cannon Light EM Pulse Cannon Ballistic Gun Light Assault Rifle Launcher Grenade Launcher Special Weapon Mining Laser Slashing Weapon Mining Claw Special Melee Weapon Datajack Build | -11 -10 -9 -8 ------- Run | Yrd Mat Mat Mat Slots Evolved 4 | . . 2 2 Power 1 | . . 1 . Propulsion 1 | . . . 1 Utility 1 | . . 1 . Weapon 1 | . . . 1 Parts Attached 26 | 6 9 2 9 Power 4 | 1 2 . 1 Engine 3 | 1 1 . 1 Core 1 | . 1 . . Reactor . | . . . . Propulsion 8 | 2 4 1 1 Treads 1 | . . . 1 Leg 5 | . 4 1 . Wheel 2 | 2 . . . Hover . | . . . . Flight . | . . . . Utility 4 | 1 1 1 1 Device 2 | . 1 1 . Storage 2 | 1 . . 1 Processor . | . . . . Hackware . | . . . . Protection . | . . . . Artifact . | . . . . Weapon 10 | 2 2 . 6 Energy Gun 2 | 1 1 . . Energy Cannon 1 | . . . 1 Ballistic Gun 1 | 1 . . . Ballistic Cannon . | . . . . Launcher 1 | . 1 . . Special Weapon 3 | . . . 3 Impact Weapon . | . . . . Slashing Weapon 1 | . . . 1 Piercing Weapon . | . . . . Special Melee Weapon 1 | . . . 1 Unidentified Prototypes . | . . . . Corrupted Parts 1 | . . . 1 System Corruption 2 | . . . 2 Parts Lost 15 | . 2 . 13 Power 2 | . . . 2 Propulsion 2 | . . . 2 Utility 2 | . . . 2 Weapon 9 | . 2 . 7 Highest Loss Streak 13 | . 1 . 13 To Critical Strikes . | . . . . Average Backups 6 | 2 6 7 6 Power . | . 1 . 1 Propulsion 2 | 1 2 3 2 Utility . | . . . . Weapon 1 | . 2 2 1 Tool/Special . | . . . . Unused Backups 5 | . 3 . 2 Power 1 | . 1 . . Propulsion 2 | . 1 . 1 Utility 2 | . 1 . 1 Weapon . | . . . . Tool/Special . | . . . . Average Slot Usage (%) 86 | . 88 88 81 Engine 11 | . 10 11 13 Core 5 | . 3 11 2 Leg 16 | . 15 22 15 Wheel 5 | . 12 . . Device 9 | . 3 11 17 Storage 11 | . 14 11 9 Energy Gun 9 | . 8 11 7 Energy Cannon 2 | . . . 7 Ballistic Gun 10 | . 14 11 6 Launcher 2 | . 5 . . Peak Build Rating 16 | 6 11 14 16 Average Rating 10 | 4 7 12 13 On Entrance 7 | . 6 11 14 Avg Prop Armor Cover (%) 5 | . 5 . . Naked Turns . | . . . . Heaviest Build 30 | 11 14 21 30 Greatest Support 23 | 20 20 23 23 Greatest Overweight (x) 6 | . 1 . 6 Average Overweight (x) . | . . . 1 Largest Inventory Capacity 10 | 8 8 8 10 Average Capacity 8 | 6 8 8 9 Most Carried 8 | 4 8 8 7 Average Carried 6 | 2 6 7 6 Final Capacity 10 | 8 8 8 10 Final Carried 7 | 4 7 7 4 Class Distribution -------------------- 41% | Mutant 32% | Scavenger-Mutant 15% | Gunner 10% | Scavenger-Gunner Dominant Class ---------------- Mutant | -10/Materials Scavenger-Mutant | -9/Materials Gunner | -8/Materials Resources | -11 -10 -9 -8 ----------- Run | Yrd Mat Mat Mat Matter Collected 498 | 248 151 . 99 Remotely . | . . . . Salvage Created 589 | . 348 . 241 Parts 37 | . 21 . 16 Haulers Intercepted . | . . . . Recyclers Shooed . | . . . . Parts Field Recycled . | . . . . Retrieved Matter . | . . . . Parts Self-Destructed . | . . . . Prevented . | . . . . Parts Restored . | . . . . Kills | -11 -10 -9 -8 ------- Run | Yrd Mat Mat Mat Combat Hostiles Destroyed 12 | . 8 . 4 Guns 7 | . 6 . 1 Cannons 3 | . . . 3 AOE 2 | . 2 . . Classes Destroyed 4 | . 2 . 2 Builder 3 | . 2 . 1 Tunneler 2 | . . . 2 Grunt 11 | . 8 . 3 Brawler 1 | . . . 1 Best Kill Streak 7 | . 7 . 4 Combat Bots Only 4 | . 4 . 2 Max Kills in Single Turn 2 | . 1 . 2 Gunslinging . | . . . . Exploded 1 | . 1 . . Melee . | . . . . Uniques/NPCs Destroyed . | . . . . Combat | -11 -10 -9 -8 -------- Run | Yrd Mat Mat Mat Hostile Shots Fired 170 | . 48 . 122 Missed 43 | . 15 . 28 Hits 127 | . 33 . 94 Melee 4 | . . . 4 Projectile 123 | . 33 . 90 Critical Strikes 6 | . 1 . 5 Damage Taken 1896 | . 453 . 1443 Core 641 | . 84 . 557 Absorbed by Shields . | . . . . Core Remaining (%) 88 | 100 66 100 . Volleys Fired 58 | . 37 . 21 Largest 3 | . 2 . 3 Hottest 150 | . 70 . 150 Shots Fired 108 | . 56 . 52 Gun 88 | . 54 . 34 Cannon 14 | . . . 14 Launcher 2 | . 2 . . Special 4 | . . . 4 Kinetic 51 | . 37 . 14 Thermal 28 | . 4 . 24 Explosive 2 | . 2 . . Electromagnetic 27 | . 13 . 14 Robot Hit Streak 8 | . 8 . 5 Robot Miss Streak 3 | . 3 . 3 Penetration Max . | . . . . Secondary Targets . | . . . . Shots Hit Robots 70 | . 35 . 35 Core Hits 35 | . 22 . 13 Critical Kills . | . . . . Critical Parts Destroyed . | . . . . Critical Strikes 3 | . 1 . 2 Burn 1 | . . . 1 Corrupt 2 | . 1 . 1 Melee Attacks 4 | . . . 4 Impact . | . . . . Slashing 4 | . . . 4 Piercing . | . . . . Sneak Attacks . | . . . . Combat Hostiles . | . . . . Follow-up Attacks . | . . . . Damage Inflicted 1298 | . 545 . 753 Guns 651 | . 371 . 280 Cannons 283 | . . . 283 Explosions 267 | . 170 . 97 Melee 45 | . . . 45 Ramming 4 | . 4 . . Kinetic 270 | . 203 . 67 Thermal 498 | . 140 . 358 Explosive 68 | . 68 . . Electromagnetic 413 | . 130 . 283 Impact . | . . . . Slashing 45 | . . . 45 Piercing . | . . . . Highest Corruption 3 | . 1 . 3 Average Corruption 1 | . 1 . 2 Corruption Purged . | . . . . Corruption Blocked . | . . . . Effects 2 | . 1 . 1 Message Errors 1 | . . . 1 Matter Fused 1 | . 1 . . Overload Shots . | . . . . Overflow Damage 2 | . 2 . . Projectiles . | . . . . Explosions 2 | . 2 . . Melee . | . . . . Knockbacks 1 | . 1 . . Impact 1 | . 1 . . Kinetic . | . . . . Secondary . | . . . . Self-Inflicted Damage 22 | . 22 . . Shots 1 | . 1 . . Rammed . | . . . . Targets Rammed 1 | . 1 . . Kicked 1 | . 1 . . Crushed . | . . . . Highest Temperature 217 | . 174 . 217 Average Temperature 78 | . 64 . 94 Received Heat Transfer 879 | . 267 . 612 Siege Activations . | . . . . Martial Activations . | . . . . Shielding Activations . | . . . . Robots Disrupted . | . . . . Combat Hostiles . | . . . . Robots Corrupted . | . . . . Combat Hostiles . | . . . . Parts Fried . | . . . . Impact Corruptions . | . . . . Robots Melted . | . . . . Combat Hostiles . | . . . . Parts Melted . | . . . . Heat Transferred 1164 | . 261 . 903 Parts Sabotaged . | . . . . Parts Stolen . | . . . . Parts Stripped . | . . . . Power Chain Reactions 3 | . 2 . 1 Alert | -11 -10 -9 -8 ------- Run | Yrd Mat Mat Mat Maximum Alert Level . | . . . . Low Security (%) 100 | 100 100 100 100 Level 1 . | . . . . Level 2 . | . . . . Level 3 . | . . . . Level 4 . | . . . . Level 5 . | . . . . High Security . | . . . . Max Security . | . . . . Peak Influence 140 | . 140 13 40 Initial 13 | . . 13 . Average 28 | . 60 1 6 Influence Increases 334 | . 225 . 109 Destroy 0b10 Robot/C 240 | . 160 . 80 Destroy 0b10 Robot/NC 25 | . 10 . 15 Destroy Leader 50 | . 40 . 10 Successful Hack 2 | . . . 2 Destroy Structure 17 | . 15 . 2 Influence Decreases 334 | . 192 33 109 Entered New Map 20 | . . 20 . Time Decay 237 | . 172 13 52 Lost Part 77 | . 20 . 57 Squads Dispatched 2 | . 1 . 1 Investigation . | . . . . Extermination . | . . . . Reinforcement 2 | . 1 . 1 Assault . | . . . . Garrison . | . . . . Intercept . | . . . . Searches Triggered . | . . . . Construction Impeded 1 | . . . 1 Haulers Reinforced . | . . . . Active Scanning Responses . | . . . . Cargo Convoy Interrupts . | . . . . Stealth | -11 -10 -9 -8 --------- Run | Yrd Mat Mat Mat Distress Signals 4 | . 2 . 2 Communications Jammed . | . . . . Distress Signals . | . . . . Times Spotted 31 | . 16 2 13 Peak Tracking Total 5 | . 4 2 5 Tactical Retreats . | . . . . Traps | -11 -10 -9 -8 ------- Run | Yrd Mat Mat Mat Traps Triggered 1 | . 1 . . Indirectly . | . . . . Trap Hack Attempts . | . . . . Triggered . | . . . . Disarmed . | . . . . Reprogrammed . | . . . . Reused . | . . . . Traps Extracted . | . . . . Installed . | . . . . Triggered . | . . . . Machines | -11 -10 -9 -8 ---------- Run | Yrd Mat Mat Mat Machines Disabled . | . . . . Max in Single Turn . | . . . . Machines Repaired . | . . . . Machines Dismantled . | . . . . Machines Sabotaged . | . . . . Overloaded Fab Kills . | . . . . Hacking | -11 -10 -9 -8 --------- Run | Yrd Mat Mat Mat Machines Accessed 3 | . 2 . 1 Terminals 2 | . 2 . . Fabricators . | . . . . Repair Stations . | . . . . Recycling Units . | . . . . Scanalyzers 1 | . . . 1 Garrison Access . | . . . . Total Hacks 7 | . 2 . 5 Successful 6 | . 2 . 4 Failed 1 | . . . 1 Catastrophic . | . . . . Database Lockouts . | . . . . Manual . | . . . . Terminals 2 | . 2 . . Fabricators . | . . . . Repair Stations . | . . . . Recycling Units . | . . . . Scanalyzers 5 | . . . 5 Garrison Access . | . . . . Terminal Hacks 2 | . 2 . . Record 1 | . 1 . . Alert Level 1 | . 1 . . Fabricator Hacks . | . . . . Repair Station Hacks . | . . . . Recycling Unit Hacks . | . . . . Scanalyzer 4 | . . . 4 Insert Component 1 | . . . 1 Analyze 1 | . . . 1 Retrieve Study 2 | . . . 2 Garrison Access Hacks . | . . . . Unauthorized Hacks . | . . . . Terminals . | . . . . Fabricators . | . . . . Repair Stations . | . . . . Recycling Units . | . . . . Scanalyzers . | . . . . Garrison Access . | . . . . Data Cores Recovered . | . . . . Used . | . . . . Hacking Detections 2 | . 2 . . Full Trace Events . | . . . . Feedback Events . | . . . . Feedback Blocked . | . . . . Robot Schematics Acquired . | . . . . Robots Built . | . . . . Authchips . | . . . . Time . | . . . . Total Robot Build Rating . | . . . . Part Schematics Acquired 1 | . . . 1 Parts Built . | . . . . Authchips . | . . . . Time . | . . . . Total Part Build Rating . | . . . . Part Studies Acquired 2 | . . . 2 Parts Repaired . | . . . . Time . | . . . . Parts Recycled . | . . . . Recycled Matter . | . . . . Retrieved Matter . | . . . . Retrieved Components . | . . . . Parts Scanalyzed 1 | . . . 1 Part Schematics Acquired 1 | . . . 1 Parts Damaged . | . . . . Bothacking | -11 -10 -9 -8 ------------ Run | Yrd Mat Mat Mat Used RIF Installer . | . . . . Robots Hacked . | . . . . Non-combat . | . . . . Combat . | . . . . Robot Hacks Applied . | . . . . Relay Couplers Released . | . . . . Fabnet Peak Effective % . | . . . . Robots Rewired . | . . . . Allies Hacked . | . . . . Hacks Repelled . | . . . . Allies | -11 -10 -9 -8 -------- Run | Yrd Mat Mat Mat Total Allies . | . . . . Largest Group . | . . . . Highest-Rated Group . | . . . . Highest-Rated Ally . | . . . . Total Orders . | . . . . Ally Attacks . | . . . . Total Damage . | . . . . Kills . | . . . . Allies Corrupted . | . . . . Allies Melted . | . . . . Intel | -11 -10 -9 -8 ------- Run | Yrd Mat Mat Mat Active Infowar (turns) 335 | . . 12 323 ECM 335 | . . 12 323 Robot Analysis Total . | . . . . Derelict Logs Recovered . | . . . . Drone Launches . | . . . . Drone Recoveries . | . . . . Exploration | -11 -10 -9 -8 ------------- Run | Yrd Mat Mat Mat Turns Passed 1091 | 48 477 228 338 Spaces Moved 701 | 47 349 179 126 Core 14 | 8 . . 6 Treads . | . . . . Legs 486 | . 187 179 120 Wheels 201 | 39 162 . . Hover . | . . . . Flight . | . . . . Fastest Speed 50 | 50 80 120 182 Average Speed 121 | 74 103 120 191 Slowest Speed 350 | 80 190 120 350 Overloaded Moves . | . . . . Propulsion Burnouts . | . . . . Robots Hopped . | . . . . Potential Cave-ins . | . . . . Cave-ins Triggered . | . . . . Exploration Rate (%) 24 | 4 62 20 11 Regions Visited 3 Branch Regions . Pre-discovered Areas . | . . . . Known Exits Taken . | . . . . Unknown Exits Taken 3 | 1 1 1 . Scrap Searched . | . . . . Spaces Dug . | . . . . Terrain Destroyed 19 | . 17 . 2 Melee . | . . . . Projectile 1 | . . . 1 AOE 18 | . 17 . 1 Terrain Rammed . | . . . . Walls Destroyed . | . . . . Machines Disabled . | . . . . Actions | -11 -10 -9 -8 --------- Run | Yrd Mat Mat Mat Total 830 | 56 416 192 166 Wait 12 | . 5 7 . Move 698 | 46 348 178 126 Hop . | . . . . Pick Up 18 | 4 9 2 3 Fast Attach 9 | 6 1 1 1 Attach 9 | . 2 1 6 Detach . | . . . . Swap 11 | . 6 1 4 Drop 10 | . 7 2 1 Fire 58 | . 37 . 21 Melee 4 | . . . 4 Ram . | . . . . Kick 1 | . 1 . . Crush . | . . . . Escape Stasis . | . . . . Rewire . | . . . . Trap . | . . . . Miscellaneous . | . . . . Route ------- -11/Scrapyard -10/Materials -9/Materials -8/Materials History --------- Turn | Location | Event 2 | -11/Scrapyard | Met Revision 17 9 | -11/Scrapyard | Discovered new exit (range 15) 49 | -11/Scrapyard | Entered Materials 307 | -10/Materials | Build established: Mutant 500 | -10/Materials | Discovered new exit (range 13) 526 | -10/Materials | Entered another Materials area 526 | -9/Materials | Evolved 2 slots: Power x1, Utility x1 694 | -9/Materials | Build established: Scavenger-Mutant 705 | -9/Materials | Discovered new exit (range 15) 754 | -9/Materials | Entered another Materials area 754 | -8/Materials | Evolved 2 slots: Propulsion x1, Weapon x1 1081 | -8/Materials | Core integrity fell below 50% 1087 | -8/Materials | Core integrity fell below 20% 1092 | -8/Materials | Destroyed by H-55 Commando with Gauss Rifle Last Messages --------------- 01061_ Ion Engine+ destroyed. 01062_ Acquired Corrupted Mining Laser. 01063_ Integrated Corrupted Mining Laser (+2). 01064_ Acquired 10 matter. 01067_ Mining Laser destroyed. 01068_ Slug penetrates Wall. 01070_ Acquired Mining Laser. [Achievement: Hydra] 01071_ Slug penetrates Wall. 01077_ Penetrated by Slug. 01077_ ECM Suite destroyed. 01078_ Mining Laser destroyed. 01079_ Penetrated by Slug. 01082_ Slug penetrates H-55 Commando. 01083_ Imp. Heat Sink destroyed. 01085_ Penetrated by Slug. 01088_ Mining Claw destroyed. 01089_ Penetrated by Slug. 01091_ U-05 Engineer destroyed. 01092_ Penetrated by Slug. Map ----- +----------------------------------------------------+ | ?????????????????????????????????????????????????? | | ?????????????????????????????????????????????????? | | ?????????????????????????????????????????????????? | | ?????????????????????????????????????????????????? | | ?????????????????????????????????????????????????? | | ?????????????????????????????????????????????????? | | ?????????????????????????????????????????????????? | | ?????????????????????????????????????????????????? | | ?????????????????????????????????????????????????? | | ??????????????????????????? ?????????????????????? | | ??????????????????????????? ?????? ????????????? | | ??????????????????????????? ?????? #???????????? | | ??????????????????????????? ?????? #???????????? | | ??????????????????????????? ?????? #???????????? | | ??????????????????????????? ?????? #???????????? | | ??????????????????????????# ?????? #???????????? | | ??????????????????????????# #????? #???????????? | | ??????????????????????????# #????# #???????????? | | ??????????????????????????# #????# ##??????????? | | ??????????????????????????#%#????# ???????????? | | ??????????????????????????# #????# #???????????? | | ??????????????????????????# #????# #???????????? | | ?????????????????????######m#????# #???????????? | | ?????????????????????# #u###### #???????????? | | ?????????????????????#*% ghh[ #???????????? | | ?????????????????????# !%@gu #???????????? | | ?????????????????????# #%* #???????????? | | ???????????????????# # # ##########?????????? | | ???????????????????######## # #?????????? | | ??????????????????????????# % # """ ??????????? | | ??????????????????????????# / [ """ ??????????? | | ??????????????????????????# ^# """ ??????????? | | ????????????###+###?####### [# #?????????? | | ????????????# #? ?""" #?????????? | | ????????????# " #?####### #?? ??" ??????????? | | ????????????# "T #???????# #?? "?????????????? | | ????????????? ????????# #??? ?????????????? | | ????????????? ????????# #????##????????????? | | ?????????????# #????????# #??????????????????? | | ?????????????# #????????# #######????????????? | | ?????????????# #????????# ?????? | | ?????????????+ #????????# #######????????????? | | ?????????????# #????????# ##########?????????? | | ?????????????# #????????# # ! #?????????? | | ?????????????# ########?# # #?????????? | | ?????????????# #?# # """ #?????????? | | ?????????????# ### + """"" #?????????? | | ?????????????# # """"" #?????????? | | ??????????#####+##### # """"" #?????????? | | ??????????# # # """ ??????????? | +----------------------------------------------------+ Best States ------------- Heat Dissipation 45 Energy Generation 19 Energy Capacity 400 Matter Stores 300 Matter Capacity 300 Sight Range 16 Terrain Scan Density 10 ECM Strength 1 Evasion (%) 55 Item Schematics ----------------- Ion Engine | -8/Materials | Scanalyzed Robot Schematics ------------------ None Fabricated ------------ Nothing Repaired ---------- Nothing Studied --------- Imp. Aluminum Leg | -8/Materials | Hacked Ion Engine | -8/Materials | Hacked Alien Tech Used ----------------- None Achievements -------------- Hydra Challenges ------------ None Game ------ Seed FieldthrustNodeLauncher Manual? 0 Play Time 00:14:13 Cumulative 18.5 hours Start 2025.11.27 @ 19:18:44 End 2025.11.27 @ 19:32:09 Sessions 1 Manual Loads 0 Difficulty Rogue Special Mode None Game No. 55 Rogue 55 Adventurer 0 Explorer 0 Win Type - Total 0 Types 0/0/0/0/0/0/0/0/0/0 Lore% 12 Gallery% 22 Achievement% 14 Wizard Run 0 Options --------- Layout 1 ASCII 0 Keyboard 0 Movement Mouse Keybinds 0 Fullscreen 1 Font 24/Smallcaps Map View 50x35 Zoom Use 0% Tactical HUD 1 Map Filters NONE Filters NONE Steam 1 RUN: 1dcb77c7-b726-4083-b000-5bc183b4ffe5